[Event "Slovakia Open Piestany-A 2022"]
[Site "Piestany"]
[Date "2022.07.12"]
[Round "1.8"]
[White "Kozak, Antoni"]
[Black "Matras, Ondrej"]
[Result "1-0"]
[ECO "D45"]
[WhiteElo "2475"]
[BlackElo "2229"]
[Annotator "ChessBase"]
[PlyCount "77"]
[EventDate "2022.07.12"]
[EventType "swiss"]
[EventCountry "SVK"]
[SourceTitle "playchess.com"]
[Source "ChessBase"]
[SourceQuality "1"]
[TimeControl "40/5400+30:1800+30"]

1. Nf3 {[%emt 0:39:11]} d5 {[%emt 0:00:45]} 2. e3 {[%emt 0:02:34]} Nf6 {[%emt 0:01:21]} 3. c4 {[%emt 0:00:06]} c6 {[%emt 0:00:19]} 4. Nc3 {[%emt 0:00:06]} e6 {[%emt 0:00:34]} 5. d4 {[%emt 0:01:06]} Nbd7 {[%emt 0:00:28]} 6. Be2 {[%emt 0:00:06]} dxc4 {[%emt 0:01:21]} 7. a4 {[%emt 0:00:05]} Bb4 {[%emt 0:00:41]} 8. Bxc4 {[%emt 0:02:50]} O-O {[%emt 0:01:08]} 9. O-O {[%emt 0:02:00]} Qa5 {[%emt 0:04:38]} 10. Qc2 {[%emt 0:09:14]} e5 {[%emt 0:01:03]} 11. Bb3 {[%emt 0:01:44]} exd4 {[%emt 0:03:20]} 12. exd4 {[%emt 0:00:03]} Qh5 {[%emt 0:00:59]} 13. Bg5 {[%emt 0:06:38]} Bd6 {[%emt 0:01:30]} 14. h3 {[%emt 0:00:24]} b6 {[%emt 0:18:06]} 15. a5 {[%emt 0:08:35]} b5 {[%emt 0:10:13]} 16. a6 {[%emt 0:08:21]} Rb8 {[%emt 0:20:12]} 17. Ne2 {[%emt 0:00:18]} Rb6 {[%emt 0:05:00]} 18. Ng3 {[%emt 0:00:51]} Qg6 {[%emt 0:02:48]} 19. Nf5 {[%emt 0:02:01]} Ne5 {[%emt 0:06:00]} 20. dxe5 {[%emt 0:01:30]} Bxf5 {[%emt 0:00:21]} 21. Qc1 {[%emt 0:00:42]} Bxh3 {[%emt 0:10:57]} 22. exd6 {[%emt 0:02:11]} h6 {[%emt 0:01:32]} 23. Bc2 {[%emt 0:03:32]} Ne4 {[%emt 0:00:40]} 24. Bxe4 {[%emt 0:01:24]} Qxe4 {[%emt 0:00:02]} 25. Qf4 {[%emt 0:01:19]} Qg6 {[%emt 0:00:30]} 26. gxh3 {[%emt 0:00:28]} f6 {[%emt 0:00:54]} 27. d7 {[%emt 0:00:52]} Rbb8 {[%emt 0:00:24]} 28. Nh4 {[%emt 0:01:32]} Qxg5+ {[%emt 0:03:36]} 29. Qxg5 {[%emt 0:00:04]} hxg5 {[%emt 0:00:07]} 30. Ng6 {[%emt 0:01:22]} Rf7 {[%emt 0:00:02]} 31. Rad1 {[%emt 0:00:12]} Rd8 {[%emt 0:00:08]} 32. Rfe1 {[%emt 0:00:03]} Rfxd7 {[%emt 0:00:48]} 33. Re8+ {[%emt 0:00:40]} Rxe8 {[%emt 0:00:32]} 34. Rxd7 {[%emt 0:00:03]} c5 {[%emt 0:00:39]} 35. Rxa7 {[%emt 0:00:15]} c4 {[%emt 0:00:52]} 36. Ne7+ {[%emt 0:00:35]} Kf7 {[%emt 0:00:28]} 37. Rb7 {[%emt 0:00:20]} Ra8 {[%emt 0:00:58]} 38. Nd5+ {[%emt 0:00:05]} Kg6 {[%emt 0:00:12]} 39. Nc7 {[%emt 0:00:04]} 1-0

[Event "Slovakia Open Piestany-A 2022"]
[Site "Piestany"]
[Date "2022.07.12"]
[Round "1.9"]
[White "Zvarik, Martin"]
[Black "Gretarsson, Helgi Ass"]
[Result "0-1"]
[ECO "B07"]
[WhiteElo "2213"]
[BlackElo "2472"]
[Annotator "ChessBase"]
[PlyCount "78"]
[EventDate "2022.07.12"]
[EventType "swiss"]
[EventCountry "SVK"]
[SourceTitle "playchess.com"]
[Source "ChessBase"]
[SourceQuality "1"]
[TimeControl "40/5400+30:1800+30"]

1. e4 {[%emt 0:00:32]} d6 {[%emt 0:00:20]} 2. d4 {[%emt 0:00:34]} Nf6 {[%emt 0:00:04]} 3. Nc3 {[%emt 0:00:20]} g6 {[%emt 0:00:05]} 4. Be3 {[%emt 0:02:58]} c6 {[%emt 0:00:33]} 5. Bd3 {[%emt 0:01:38]} Nbd7 {[%emt 0:03:52]} 6. Nf3 {[%emt 0:08:31]} e5 {[%emt 0:05:04]} 7. O-O {[%emt 0:05:15]} Bg7 {[%emt 0:15:21]} 8. Qc1 {[%emt 0:20:00]} O-O {[%emt 0:13:41]} 9. dxe5 {[%emt 0:07:02]} dxe5 {[%emt 0:00:26]} 10. h3 {[%emt 0:01:22]} Qe7 {[%emt 0:01:42]} 11. b3 {[%emt 0:12:54]} Re8 {[%emt 0:05:22]} 12. Qb2 {[%emt 0:09:09]} Nh5 {[%emt 0:08:15]} 13. Rad1 {[%emt 0:03:28]} b5 {[%emt 0:05:15]} 14. Ne2 {[%emt 0:03:52]} Bb7 {[%emt 0:04:18]} 15. Rd2 {[%emt 0:04:32]} Nf4 {[%emt 0:16:55]} 16. Rfd1 {[%emt 0:01:31]} Nc5 {[%emt 0:01:08]} 17. b4 {[%emt 0:03:28]} Nfxd3 {[%emt 0:05:59]} 18. cxd3 {[%emt 0:01:06]} Na4 {[%emt 0:00:07]} 19. Qb3 {[%emt 0:00:52]} a5 {[%emt 0:00:27]} 20. bxa5 {[%emt 0:01:12]} Rxa5 {[%emt 0:00:30]} 21. d4 {[%emt 0:00:36]} exd4 {[%emt 0:01:37]} 22. Bxd4 {[%emt 0:00:13]} Bxd4 {[%emt 0:01:06]} 23. Rxd4 {[%emt 0:00:44]} Nc5 {[%emt 0:01:48]} 24. Qc2 {[%emt 0:00:57]} Ra4 {[%emt 0:04:46]} 25. e5 {[%emt 0:00:38]} Rxd4 {[%emt 0:00:35]} 26. Rxd4 {[%emt 0:00:17]} Ne6 {[%emt 0:00:07]} 27. Rd6 {[%emt 0:00:27]} c5 {[%emt 0:00:05]} 28. Qb3 {[%emt 0:03:42]} Bxf3 {[%emt 0:02:16]} 29. Qxf3 {[%emt 0:01:22]} Ng5 {[%emt 0:00:02]} 30. Qc6 {[%emt 0:02:30]} Qxe5 {[%emt 0:00:01]} 31. Ng3 {[%emt 0:00:40]} Rb8 {[%emt 0:02:25]} 32. h4 {[%emt 0:01:01]} Ne6 {[%emt 0:00:23]} 33. Ne4 {[%emt 0:00:30]} Kg7 {[%emt 0:00:33]} 34. Rd7 {[%emt 0:00:59]} Nf8 {[%emt 0:01:19]} 35. Ra7 {[%emt 0:00:58]} Rd8 {[%emt 0:00:02]} 36. g3 {[%emt 0:00:32]} Ne6 {[%emt 0:01:01]} 37. Qb7 {[%emt 0:01:12]} Qf5 {[%emt 0:00:02]} 38. Qe7 {[%emt 0:00:54]} Rd1+ {[%emt 0:00:25]} 39. Kh2 {[%emt 0:00:06]} Qf3 {[%emt 0:00:07]} 0-1

[Event "Slovakia Open Piestany-A 2022"]
[Site "Piestany"]
[Date "2022.07.12"]
[Round "1.10"]
[White "Sahidi, Samir"]
[Black "Holly, Andrej"]
[Result "1-0"]
[ECO "E68"]
[WhiteElo "2462"]
[BlackElo "2213"]
[Annotator "ChessBase"]
[PlyCount "91"]
[EventDate "2022.07.12"]
[EventType "swiss"]
[EventCountry "SVK"]
[SourceTitle "playchess.com"]
[Source "ChessBase"]
[SourceQuality "1"]
[TimeControl "40/5400+30:1800+30"]

1. c4 {[%emt 0:00:10]} Nf6 {[%emt 0:00:08]} 2. Nf3 {[%emt 0:00:29]} g6 {[%emt 0:00:17]} 3. g3 {[%emt 0:01:23]} Bg7 {[%emt 0:00:25]} 4. Bg2 {[%emt 0:00:19]} O-O {[%emt 0:00:56]} 5. d4 {[%emt 0:00:22]} d6 {[%emt 0:01:06]} 6. Nc3 {[%emt 0:01:24]} Nbd7 {[%emt 0:01:55]} 7. O-O {[%emt 0:01:04]} e5 {[%emt 0:02:22]} 8. e4 {[%emt 0:04:31]} Qe7 {[%emt 0:04:16]} 9. Re1 {[%emt 0:02:16]} c6 {[%emt 0:03:44]} 10. b3 {[%emt 0:01:06]} exd4 {[%emt 0:09:23]} 11. Nxd4 {[%emt 0:00:13]} Nc5 {[%emt 0:02:45]} 12. h3 {[%emt 0:05:02]} Re8 {[%emt 0:08:12]} 13. Bb2 {[%emt 0:02:19]} Ne6 {[%emt 0:05:19]} 14. Nc2 {[%emt 0:11:44]} Ng5 {[%emt 0:04:03]} 15. Kh2 {[%emt 0:02:00]} Qd7 {[%emt 0:04:27]} 16. g4 {[%emt 0:03:15]} Ne6 {[%emt 0:04:01]} 17. Qd2 {[%emt 0:00:34]} h5 {[%emt 0:05:01]} 18. f3 {[%emt 0:03:03]} hxg4 {[%emt 0:02:43]} 19. fxg4 {[%emt 0:00:32]} Qe7 {[%emt 0:02:34]} 20. Rad1 {[%emt 0:04:00]} Rd8 {[%emt 0:02:19]} 21. Kg1 {[%emt 0:05:21]} Nh7 {[%emt 0:04:39]} 22. Rf1 {[%emt 0:02:07]} Qh4 {[%emt 0:02:34]} 23. Na4 {[%emt 0:02:17]} Be5 {[%emt 0:02:21]} 24. Qf2 {[%emt 0:09:05]} Qxf2+ {[%emt 0:00:19]} 25. Rxf2 {[%emt 0:00:30]} b6 {[%emt 0:05:22]} 26. Rfd2 {[%emt 0:03:38]} Bb7 {[%emt 0:01:03]} 27. Ne1 {[%emt 0:00:35]} c5 {[%emt 0:03:08]} 28. Nc3 {[%emt 0:01:38]} Bc6 {[%emt 0:04:43]} 29. Nf3 {[%emt 0:03:19]} Nf6 {[%emt 0:06:55]} 30. Nd5 {[%emt 0:11:02]} Bxd5 {[%emt 0:03:10]} 31. Nxe5 {[%emt 0:05:30]} dxe5 {[%emt 0:03:29]} 32. exd5 {[%emt 0:02:12]} Nd4 {[%emt 0:00:10]} 33. Rf2 {[%emt 0:00:14]} Ne8 {[%emt 0:01:38]} 34. Re1 {[%emt 0:00:36]} f6 {[%emt 0:00:25]} 35. g5 {[%emt 0:00:16]} fxg5 {[%emt 0:00:48]} 36. Rxe5 {[%emt 0:00:08]} Nf5 {[%emt 0:00:10]} 37. Bc1 {[%emt 0:00:58]} Ned6 {[%emt 0:00:21]} 38. Re6 {[%emt 0:00:44]} Kg7 {[%emt 0:00:53]} 39. Bxg5 {[%emt 0:00:28]} Re8 {[%emt 0:00:36]} 40. Rfe2 {[%emt 0:01:20]} Kf7 {[%emt 0:01:15]} 41. Kf2 {[%emt 0:30:56]} a5 {[%emt 0:05:37]} 42. Be4 {[%emt 0:00:00]} a4 {[%emt 0:04:49]} 43. Bxf5 {[%emt 0:00:00]} Nxf5 {[%emt 0:00:01]} 44. Rf6+ {[%emt 0:00:00]} Kg7 {[%emt 0:00:10]} 45. Rxe8 {[%emt 0:00:00]} Rxe8 {[%emt 0:00:01]} 46. Rxb6 {[%emt 0:00:00]} 1-0

[Event "Slovakia Open Piestany-A 2022"]
[Site "Piestany"]
[Date "2022.07.12"]
[Round "1.11"]
[White "Delgerdalai, Bayarjavkhlan"]
[Black "Stefansson, Vignir Vatnar"]
[Result "0-1"]
[ECO "C10"]
[WhiteElo "2209"]
[BlackElo "2461"]
[Annotator "ChessBase"]
[PlyCount "102"]
[EventDate "2022.07.12"]
[EventType "swiss"]
[EventCountry "SVK"]
[SourceTitle "playchess.com"]
[Source "ChessBase"]
[SourceQuality "1"]
[TimeControl "40/5400+30:1800+30"]

1. e4 {[%emt 0:00:05]} e6 {[%emt 0:01:03]} 2. d4 {[%emt 0:00:15]} d5 {[%emt 0:00:14]} 3. Nc3 {[%emt 0:00:25]} a6 {[%emt 0:00:47]} 4. Nf3 {[%emt 0:02:15]} Nf6 {[%emt 0:00:11]} 5. Bg5 {[%emt 0:02:31]} dxe4 {[%emt 0:00:11]} 6. Nxe4 {[%emt 0:00:22]} Be7 {[%emt 0:00:06]} 7. Nxf6+ {[%emt 0:02:14]} Bxf6 {[%emt 0:00:13]} 8. Bxf6 {[%emt 0:00:48]} Qxf6 {[%emt 0:00:10]} 9. c3 {[%emt 0:03:44]} b6 {[%emt 0:07:51]} 10. Be2 {[%emt 0:03:08]} Bb7 {[%emt 0:01:57]} 11. O-O {[%emt 0:04:32]} Nd7 {[%emt 0:01:22]} 12. Qd2 {[%emt 0:01:35]} c5 {[%emt 0:04:13]} 13. Rad1 {[%emt 0:01:34]} Rd8 {[%emt 0:05:31]} 14. Qe3 {[%emt 0:08:24]} O-O {[%emt 0:02:51]} 15. dxc5 {[%emt 0:03:57]} Nxc5 {[%emt 0:01:06]} 16. Ne5 {[%emt 0:02:58]} Qe7 {[%emt 0:07:52]} 17. Bf3 {[%emt 0:25:48]} Bxf3 {[%emt 0:01:18]} 18. Qxf3 {[%emt 0:03:20]} Qc7 {[%emt 0:00:52]} 19. Qe2 {[%emt 0:03:48]} b5 {[%emt 0:01:56]} 20. b3 {[%emt 0:01:31]} Qb7 {[%emt 0:12:52]} 21. Rxd8 {[%emt 0:05:40]} Rxd8 {[%emt 0:00:09]} 22. Rd1 {[%emt 0:00:22]} Qc7 {[%emt 0:01:09]} 23. Nf3 {[%emt 0:05:05]} Rxd1+ {[%emt 0:06:54]} 24. Qxd1 {[%emt 0:00:06]} Ne4 {[%emt 0:00:23]} 25. c4 {[%emt 0:00:29]} bxc4 {[%emt 0:00:36]} 26. bxc4 {[%emt 0:00:13]} Nd6 {[%emt 0:08:35]} 27. Nd2 {[%emt 0:00:52]} h6 {[%emt 0:04:32]} 28. Qb3 {[%emt 0:04:45]} Qc5 {[%emt 0:05:06]} 29. Qd3 {[%emt 0:01:30]} Qe5 {[%emt 0:01:07]} 30. g3 {[%emt 0:00:37]} a5 {[%emt 0:00:58]} 31. Nf3 {[%emt 0:01:28]} Qc5 {[%emt 0:00:54]} 32. Nd2 {[%emt 0:00:49]} a4 {[%emt 0:04:40]} 33. Qc2 {[%emt 0:08:07]} a3 {[%emt 0:00:09]} 34. Qd3 {[%emt 0:02:08]} Qb4 {[%emt 0:00:25]} 35. Kg2 {[%emt 0:01:00]} f6 {[%emt 0:04:07]} 36. h4 {[%emt 0:00:54]} Kf7 {[%emt 0:00:29]} 37. Kh2 {[%emt 0:01:04]} Ke7 {[%emt 0:00:18]} 38. Kg2 {[%emt 0:00:31]} f5 {[%emt 0:09:10]} 39. Qd4 {[%emt 0:00:20]} Qb2 {[%emt 0:00:20]} 40. Qa7+ {[%emt 0:00:37]} Kf6 {[%emt 0:01:43]} 41. Nf3 {[%emt 0:30:30]} Nxc4 {[%emt 0:30:25]} 42. Qd7 {[%emt 0:00:36]} Ne3+ {[%emt 0:01:30]} 43. Kh3 {[%emt 0:00:31]} Ng4 {[%emt 0:01:50]} 44. Qd8+ {[%emt 0:00:21]} Kg6 {[%emt 0:00:20]} 45. Qe8+ {[%emt 0:00:14]} Kh7 {[%emt 0:00:12]} 46. Qxe6 {[%emt 0:00:55]} Nxf2+ {[%emt 0:00:36]} 47. Kg2 {[%emt 0:00:16]} Ne4+ {[%emt 0:00:46]} 48. Kh3 {[%emt 0:00:24]} Qb5 {[%emt 0:00:32]} 49. Nh2 {[%emt 0:00:40]} Nf6 {[%emt 0:01:40]} 50. g4 {[%emt 0:00:36]} fxg4+ {[%emt 0:01:07]} 51. Nxg4 {[%emt 0:00:11]} Qf1+ {[%emt 0:00:09]} 0-1

[Event "Slovakia Open Piestany-A 2022"]
[Site "Piestany"]
[Date "2022.07.12"]
[Round "1.12"]
[White "Haring, Filip"]
[Black "Banas, Jan"]
[Result "1-0"]
[ECO "B42"]
[WhiteElo "2451"]
[BlackElo "2206"]
[Annotator "ChessBase"]
[PlyCount "63"]
[EventDate "2022.07.12"]
[EventType "swiss"]
[EventCountry "SVK"]
[SourceTitle "playchess.com"]
[Source "ChessBase"]
[SourceQuality "1"]
[TimeControl "40/5400+30:1800+30"]

1. e4 {[%emt 0:00:07]} c5 {[%emt 0:00:11]} 2. Nf3 {[%emt 0:00:14]} e6 {[%emt 0:00:23]} 3. d4 {[%emt 0:01:28]} cxd4 {[%emt 0:00:09]} 4. Nxd4 {[%emt 0:00:05]} a6 {[%emt 0:00:32]} 5. Bd3 {[%emt 0:02:41]} Nf6 {[%emt 0:02:38]} 6. O-O {[%emt 0:01:03]} d6 {[%emt 0:00:09]} 7. c4 {[%emt 0:01:40]} Qc7 {[%emt 0:00:18]} 8. Nc3 {[%emt 0:00:34]} b6 {[%emt 0:00:22]} 9. Kh1 {[%emt 0:02:29]} Bb7 {[%emt 0:00:17]} 10. f4 {[%emt 0:01:18]} Nbd7 {[%emt 0:00:27]} 11. Qf3 {[%emt 0:04:19]} g6 {[%emt 0:00:32]} 12. Bd2 {[%emt 0:08:23]} Bg7 {[%emt 0:00:42]} 13. Rae1 {[%emt 0:01:38]} O-O {[%emt 0:00:28]} 14. Qh3 {[%emt 0:11:06]} Nc5 {[%emt 0:03:37]} 15. Bb1 {[%emt 0:00:30]} Nfxe4 {[%emt 0:12:07]} 16. Nxe4 {[%emt 0:06:14]} Bxd4 {[%emt 0:04:31]} 17. Ng5 {[%emt 0:44:46]} h5 {[%emt 1:11:37]} 18. b4 {[%emt 0:10:55]} Na4 {[%emt 0:00:30]} 19. Qd3 {[%emt 0:00:30]} Bf6 {[%emt 0:00:30]} 20. f5 {[%emt 0:00:30]} exf5 {[%emt 0:00:30]} 21. Rxf5 {[%emt 0:00:30]} Nb2 {[%emt 0:00:30]} 22. Qc2 {[%emt 0:00:30]} Qc6 {[%emt 0:00:30]} 23. Rg1 {[%emt 0:00:30]} Bg7 {[%emt 0:00:30]} 24. Rxf7 {[%emt 0:00:30]} Rxf7 {[%emt 0:00:30]} 25. Nxf7 {[%emt 0:00:30]} Rf8 {[%emt 0:00:30]} 26. Nh6+ {[%emt 0:00:30]} Bxh6 {[%emt 0:00:30]} 27. Qxg6+ {[%emt 0:00:30]} Bg7 {[%emt 0:00:30]} 28. Qh7+ {[%emt 0:00:30]} Kf7 {[%emt 0:00:30]} 29. Bc3 {[%emt 0:00:30]} Ke6 {[%emt 0:00:30]} 30. Qg6+ {[%emt 0:00:30]} Ke7 {[%emt 0:00:30]} 31. Qxg7+ {[%emt 0:00:30]} Rf7 {[%emt 0:00:30]} 32. Bf6+ {[%emt 0:00:30]} 1-0

[Event "Slovakia Open Piestany-A 2022"]
[Site "Piestany"]
[Date "2022.07.12"]
[Round "1.13"]
[White "Gyerpal, Adrian"]
[Black "Samunenkov, Ihor"]
[Result "0-1"]
[ECO "E04"]
[WhiteElo "2193"]
[BlackElo "2448"]
[Annotator "ChessBase"]
[PlyCount "160"]
[EventDate "2022.07.12"]
[EventType "swiss"]
[EventCountry "SVK"]
[SourceTitle "playchess.com"]
[Source "ChessBase"]
[SourceQuality "1"]
[TimeControl "40/5400+30:1800+30"]

1. d4 {[%emt 0:00:15]} d5 {[%emt 0:00:12]} 2. c4 {[%emt 0:00:22]} e6 {[%emt 0:00:15]} 3. Nf3 {[%emt 0:00:08]} Nf6 {[%emt 0:00:12]} 4. g3 {[%emt 0:00:09]} dxc4 {[%emt 0:00:13]} 5. Bg2 {[%emt 0:00:37]} c5 {[%emt 0:00:17]} 6. Qa4+ {[%emt 0:03:49]} Bd7 {[%emt 0:00:42]} 7. Qxc4 {[%emt 0:00:34]} b5 {[%emt 0:00:17]} 8. Qc2 {[%emt 0:01:35]} Na6 {[%emt 0:01:03]} 9. O-O {[%emt 0:04:42]} Rc8 {[%emt 0:06:54]} 10. Qd1 {[%emt 0:03:03]} cxd4 {[%emt 0:01:34]} 11. Nxd4 {[%emt 0:01:36]} Nc5 {[%emt 0:00:18]} 12. Nd2 {[%emt 0:02:55]} e5 {[%emt 0:14:09]} 13. N4b3 {[%emt 0:06:14]} Be6 {[%emt 0:07:59]} 14. Nxc5 {[%emt 0:16:42]} Bxc5 {[%emt 0:01:11]} 15. Nb3 {[%emt 0:01:47]} Qxd1 {[%emt 0:10:45]} 16. Rxd1 {[%emt 0:00:08]} Bb6 {[%emt 0:00:12]} 17. Bd2 {[%emt 0:06:10]} O-O {[%emt 0:07:17]} 18. Bc3 {[%emt 0:06:28]} Bc4 {[%emt 0:03:55]} 19. e3 {[%emt 0:05:28]} Rfe8 {[%emt 0:05:12]} 20. Na5 {[%emt 0:04:05]} Bxa5 {[%emt 0:07:15]} 21. Bxa5 {[%emt 0:00:17]} e4 {[%emt 0:00:08]} 22. Rd4 {[%emt 0:04:58]} Bd3 {[%emt 0:03:59]} 23. Bc3 {[%emt 0:02:32]} Ng4 {[%emt 0:09:13]} 24. a4 {[%emt 0:05:10]} a6 {[%emt 0:02:01]} 25. Bh3 {[%emt 0:10:12]} h5 {[%emt 0:05:42]} 26. Rd6 {[%emt 0:04:57]} b4 {[%emt 0:05:24]} 27. Bxb4 {[%emt 0:01:12]} Rc2 {[%emt 0:00:13]} 28. Bxg4 {[%emt 0:00:58]} hxg4 {[%emt 0:00:09]} 29. Bc3 {[%emt 0:00:40]} Rc8 {[%emt 0:01:41]} 30. Rd5 {[%emt 0:00:52]} f6 {[%emt 0:01:40]} 31. a5 {[%emt 0:00:51]} Kf7 {[%emt 0:01:35]} 32. Rd7+ {[%emt 0:00:56]} Kg6 {[%emt 0:00:31]} 33. Rd5 {[%emt 0:00:31]} Rc7 {[%emt 0:01:23]} 34. Kg2 {[%emt 0:05:53]} Kf7 {[%emt 0:01:00]} 35. Rh5 {[%emt 0:00:22]} Ke6 {[%emt 0:01:18]} 36. Rh4 {[%emt 0:00:48]} Be2 {[%emt 0:01:02]} 37. h3 {[%emt 0:00:30]} Bf3+ {[%emt 0:00:54]} 38. Kg1 {[%emt 0:00:06]} gxh3 {[%emt 0:00:56]} 39. Rxh3 {[%emt 0:00:30]} Rd7 {[%emt 0:00:37]} 40. Rh4 {[%emt 0:00:17]} Rd8 {[%emt 0:00:38]} 41. Re1 {[%emt 0:02:44]} Kf7 {[%emt 0:11:25]} 42. Kf1 {[%emt 0:02:10]} Kg8 {[%emt 0:07:50]} 43. Rh2 {[%emt 0:02:48]} Rd6 {[%emt 0:01:02]} 44. Rh4 {[%emt 0:01:55]} g5 {[%emt 0:01:03]} 45. Rh6 {[%emt 0:00:39]} Kg7 {[%emt 0:00:14]} 46. Rh2 {[%emt 0:00:16]} Rd8 {[%emt 0:02:36]} 47. Rh3 {[%emt 0:01:21]} Kg6 {[%emt 0:01:25]} 48. Rh2 {[%emt 0:01:05]} Rb8 {[%emt 0:02:44]} 49. Rh3 {[%emt 0:01:19]} Kg7 {[%emt 0:01:32]} 50. Rh2 {[%emt 0:00:51]} Rb5 {[%emt 0:00:11]} 51. Rh3 {[%emt 0:01:46]} Rd5 {[%emt 0:00:28]} 52. Rh2 {[%emt 0:00:40]} Rd3 {[%emt 0:01:01]} 53. Rh3 {[%emt 0:02:04]} Bd1 {[%emt 0:00:57]} 54. Rh2 {[%emt 0:01:51]} Bg4 {[%emt 0:00:22]} 55. Rh1 {[%emt 0:01:12]} Rd6 {[%emt 0:00:26]} 56. Rh2 {[%emt 0:00:36]} Rd7 {[%emt 0:00:23]} 57. Rh1 {[%emt 0:01:36]} Rd3 {[%emt 0:00:05]} 58. Rh2 {[%emt 0:00:22]} Bd1 {[%emt 0:00:23]} 59. Rh3 {[%emt 0:00:53]} Rc1 {[%emt 0:00:36]} 60. Rh2 {[%emt 0:00:38]} Ra1 {[%emt 0:00:43]} 61. Rh1 {[%emt 0:03:52]} Ra4 {[%emt 0:00:33]} 62. Rh2 {[%emt 0:01:22]} Rc4 {[%emt 0:00:37]} 63. f4 {[%emt 0:05:36]} exf3 {[%emt 0:00:28]} 64. Kf2 {[%emt 0:00:28]} Rd7 {[%emt 0:04:16]} 65. Reh1 {[%emt 0:00:44]} Bc2 {[%emt 0:00:05]} 66. Rc1 {[%emt 0:01:46]} Be4 {[%emt 0:01:25]} 67. Bxf6+ {[%emt 0:01:22]} Kxf6 {[%emt 0:00:15]} 68. Rxc4 {[%emt 0:00:04]} Rd2+ {[%emt 0:00:04]} 69. Kg1 {[%emt 0:02:05]} Rd1+ {[%emt 0:00:08]} 70. Kf2 {[%emt 0:00:01]} Rd2+ {[%emt 0:00:56]} 71. Kg1 {[%emt 0:02:01]} Rd1+ {[%emt 0:00:24]} 72. Kf2 {[%emt 0:00:30]} Bd3 {[%emt 0:01:24]} 73. Rc6+ {[%emt 0:00:01]} Kf5 {[%emt 0:00:20]} 74. e4+ {[%emt 0:00:00]} Kxe4 {[%emt 0:00:37]} 75. Re6+ {[%emt 0:00:26]} Kf5 {[%emt 0:00:34]} 76. Rd6 {[%emt 0:01:34]} Rd2+ {[%emt 0:00:13]} 77. Ke3 {[%emt 0:00:20]} Rxh2 {[%emt 0:00:07]} 78. Rxd3 {[%emt 0:00:04]} Kg4 {[%emt 0:00:58]} 79. b4 {[%emt 0:00:41]} Re2+ {[%emt 0:00:09]} 80. Kd4 {[%emt 0:00:05]} f2 {[%emt 0:00:07]} 0-1

[Event "Slovakia Open Piestany-A 2022"]
[Site "Piestany"]
[Date "2022.07.12"]
[Round "1.14"]
[White "Piesik, Piotr"]
[Black "Skreko, Igor"]
[Result "1-0"]
[ECO "E92"]
[WhiteElo "2440"]
[BlackElo "2193"]
[Annotator "ChessBase"]
[PlyCount "83"]
[EventDate "2022.07.12"]
[EventType "swiss"]
[EventCountry "SVK"]
[SourceTitle "playchess.com"]
[Source "ChessBase"]
[SourceQuality "1"]
[TimeControl "40/5400+30:1800+30"]

1. d4 {[%emt 0:04:08]} Nf6 {[%emt 0:00:06]} 2. c4 {[%emt 0:00:25]} g6 {[%emt 0:00:05]} 3. Nc3 {[%emt 0:00:06]} Bg7 {[%emt 0:00:06]} 4. e4 {[%emt 0:00:04]} d6 {[%emt 0:00:06]} 5. Nf3 {[%emt 0:00:14]} O-O {[%emt 0:00:07]} 6. Be2 {[%emt 0:00:02]} e5 {[%emt 0:00:08]} 7. d5 {[%emt 0:00:06]} a5 {[%emt 0:00:15]} 8. Bg5 {[%emt 0:00:48]} Na6 {[%emt 0:00:19]} 9. Nd2 {[%emt 0:01:09]} Bd7 {[%emt 0:04:57]} 10. O-O {[%emt 0:01:47]} c6 {[%emt 0:04:12]} 11. Rb1 {[%emt 0:08:48]} Qb8 {[%emt 0:06:11]} 12. Na4 {[%emt 0:11:11]} Qc7 {[%emt 0:07:33]} 13. Be3 {[%emt 0:08:20]} c5 {[%emt 0:08:05]} 14. a3 {[%emt 0:08:26]} Ne8 {[%emt 0:03:01]} 15. Nc3 {[%emt 0:04:21]} f5 {[%emt 0:01:42]} 16. exf5 {[%emt 0:02:31]} gxf5 {[%emt 0:01:59]} 17. f4 {[%emt 0:01:02]} Kh8 {[%emt 0:04:03]} 18. Kh1 {[%emt 0:15:15]} Qd8 {[%emt 0:04:08]} 19. g4 {[%emt 0:02:51]} exf4 {[%emt 0:07:21]} 20. Bxf4 {[%emt 0:00:07]} fxg4 {[%emt 0:01:13]} 21. Nde4 {[%emt 0:02:38]} Qh4 {[%emt 0:10:06]} 22. Qd2 {[%emt 0:05:42]} Qe7 {[%emt 0:07:26]} 23. Rbe1 {[%emt 0:04:03]} Bf5 {[%emt 0:07:40]} 24. Ng3 {[%emt 0:01:11]} Bg6 {[%emt 0:01:04]} 25. Bxg4 {[%emt 0:01:43]} Qh4 {[%emt 0:00:53]} 26. Be2 {[%emt 0:03:43]} Nac7 {[%emt 0:05:14]} 27. Nce4 {[%emt 0:02:46]} Ra6 {[%emt 0:01:12]} 28. Bd3 {[%emt 0:03:27]} Rb6 {[%emt 0:02:04]} 29. Bg5 {[%emt 0:00:12]} Qh3 {[%emt 0:01:22]} 30. Rxf8+ {[%emt 0:00:12]} Bxf8 {[%emt 0:00:02]} 31. Nf2 {[%emt 0:01:46]} Qd7 {[%emt 0:00:20]} 32. Bxg6 {[%emt 0:01:29]} hxg6 {[%emt 0:00:02]} 33. Qf4 {[%emt 0:01:02]} Kg8 {[%emt 0:01:46]} 34. Nd3 {[%emt 0:02:51]} Ng7 {[%emt 0:03:49]} 35. Ne4 {[%emt 0:01:47]} Nce8 {[%emt 0:00:34]} 36. Qf2 {[%emt 0:01:02]} Nf5 {[%emt 0:01:43]} 37. b4 {[%emt 0:00:11]} axb4 {[%emt 0:03:28]} 38. axb4 {[%emt 0:00:00]} Bg7 {[%emt 0:03:40]} 39. b5 {[%emt 0:01:51]} Nd4 {[%emt 0:01:27]} 40. Nf4 {[%emt 0:00:00]} Qf5 {[%emt 0:00:00]} 41. Bd8 {[%emt 0:04:24]} Bh6 {[%emt 0:31:31]} 42. Nxg6 {[%emt 0:27:49]} 1-0